[Event "Julius Baer Generation Cup Prelims 2022"]
[Site "Online"]
[Date "2022.09.14"]
[Round "2.2"]
[White "Adhiban, B.."]
[Black "Erigaisi Arjun"]
[Result "0-1"]
[ECO "D76"]
[WhiteElo "2603"]
[BlackElo "2725"]
[Annotator "ChessBase"]
[PlyCount "72"]
[EventDate "2022.09.12"]
[EventType "tourn"]
[EventCountry "NET"]
[SourceTitle "playchess.com"]
[Source "ChessBase"]
[SourceQuality "1"]
[TimeControl "900+10"]

1. c4 {[%emt 0:00:00]} Nf6 {[%emt 0:00:00]} 2. g3 {[%emt 0:00:10]} g6 {[%emt 0:00:07]} 3. Bg2 {[%emt 0:00:02]} Bg7 {[%emt 0:00:00]} 4. d4 {[%emt 0:00:09]} O-O {[%emt 0:00:02]} 5. Nc3 {[%emt 0:00:01]} Nc6 {[%emt 0:00:02]} 6. Nf3 {[%emt 0:00:05]} d5 {[%emt 0:00:02]} 7. cxd5 {[%emt 0:00:10]} Nxd5 {[%emt 0:00:00]} 8. O-O {[%emt 0:00:03]} Nb6 {[%emt 0:00:02]} 9. d5 {[%emt 0:00:10]} Na5 {[%emt 0:00:02]} 10. e4 {[%emt 0:00:12]} c6 {[%emt 0:00:05]} 11. Bf4 {[%emt 0:00:03]} Bxc3 {[%emt 0:00:08]} 12. bxc3 {[%emt 0:00:02]} cxd5 {[%emt 0:00:00]} 13. exd5 {[%emt 0:00:10]} Qxd5 {[%emt 0:00:00]} 14. Nd4 {[%emt 0:00:45]} Qc5 {[%emt 0:01:03]} 15. Re1 {[%emt 0:01:57]} Rd8 {[%emt 0:00:38]} 16. Qc1 {[%emt 0:04:56]} Nac4 {[%emt 0:01:02]} 17. Rb1 {[%emt 0:00:33]} a6 {[%emt 0:01:10]} 18. Nb3 {[%emt 0:03:32]} Qh5 {[%emt 0:00:17]} 19. Bc7 {[%emt 0:00:46]} Rd3 {[%emt 0:02:37]} 20. Qf4 {[%emt 0:01:44]} Bh3 {[%emt 0:02:46]} 21. Bxh3 {[%emt 0:01:48]} Qxh3 {[%emt 0:00:00]} 22. Bxb6 {[%emt 0:00:03]} Nxb6 {[%emt 0:00:01]} 23. Nc5 {[%emt 0:00:17]} Rd5 {[%emt 0:00:35]} 24. Rxe7 {[%emt 0:00:39]} Rf5 {[%emt 0:00:02]} 25. Qd4 {[%emt 0:00:09]} Rh5 {[%emt 0:00:28]} 26. Rxb6 {[%emt 0:00:48]} Qxh2+ {[%emt 0:00:00]} 27. Kf1 {[%emt 0:00:01]} Qh1+ {[%emt 0:00:00]} 28. Ke2 {[%emt 0:00:01]} Rd5 {[%emt 0:00:00]} 29. Qe4 {[%emt 0:00:29]} Qd1+ {[%emt 0:00:06]} 30. Ke3 {[%emt 0:00:01]} Rxc5 {[%emt 0:00:36]} 31. Rbxb7 {[%emt 0:00:19]} Rxc3+ {[%emt 0:00:23]} 32. Kf4 {[%emt 0:00:01]} Qd2+ {[%emt 0:00:01]} 33. Kg4 {[%emt 0:00:15]} f5+ {[%emt 0:01:06]} 34. Kh3 {[%emt 0:00:02]} fxe4 {[%emt 0:00:01]} 35. Rg7+ {[%emt 0:00:01]} Kf8 {[%emt 0:00:00]} 36. Rxh7 {[%emt 0:00:03]} Qd4 {[%emt 0:00:04]} 0-1

[Event "Julius Baer Generation Cup Prelims 2022"]
[Site "Online"]
[Date "2022.09.14"]
[Round "2.3"]
[White "Le, Quang Liem"]
[Black "Keymer, Vincent"]
[Result "1/2-1/2"]
[ECO "A28"]
[WhiteElo "2728"]
[BlackElo "2693"]
[Annotator "ChessBase"]
[PlyCount "106"]
[EventDate "2022.09.12"]
[EventType "tourn"]
[EventCountry "NET"]
[SourceTitle "playchess.com"]
[Source "ChessBase"]
[SourceQuality "1"]
[TimeControl "900+10"]

1. c4 {[%emt 0:00:00]} Nf6 {[%emt 0:00:00]} 2. Nc3 {[%emt 0:00:03]} e5 {[%emt 0:00:02]} 3. Nf3 {[%emt 0:00:02]} Nc6 {[%emt 0:00:01]} 4. e4 {[%emt 0:00:03]} Bb4 {[%emt 0:00:02]} 5. d3 {[%emt 0:00:04]} d6 {[%emt 0:00:03]} 6. a3 {[%emt 0:00:06]} Bxc3+ {[%emt 0:00:01]} 7. bxc3 {[%emt 0:00:02]} O-O {[%emt 0:00:02]} 8. g3 {[%emt 0:01:03]} Rb8 {[%emt 0:00:02]} 9. a4 {[%emt 0:00:55]} Ne8 {[%emt 0:00:03]} 10. Nh4 {[%emt 0:00:02]} Ne7 {[%emt 0:00:01]} 11. g4 {[%emt 0:01:23]} Ng6 {[%emt 0:02:22]} 12. Nf5 {[%emt 0:00:04]} Nf4 {[%emt 0:01:36]} 13. Qf3 {[%emt 0:00:20]} g6 {[%emt 0:00:33]} 14. Ng3 {[%emt 0:01:52]} Qf6 {[%emt 0:02:07]} 15. h4 {[%emt 0:00:31]} Ne6 {[%emt 0:01:06]} 16. Qxf6 {[%emt 0:02:07]} Nxf6 {[%emt 0:00:00]} 17. f3 {[%emt 0:00:01]} Re8 {[%emt 0:01:35]} 18. Ra2 {[%emt 0:00:34]} Nd7 {[%emt 0:01:41]} 19. Be3 {[%emt 0:01:17]} b6 {[%emt 0:00:50]} 20. d4 {[%emt 0:00:09]} exd4 {[%emt 0:01:43]} 21. cxd4 {[%emt 0:00:00]} c5 {[%emt 0:00:01]} 22. d5 {[%emt 0:01:28]} Nd4 {[%emt 0:00:03]} 23. Bxd4 {[%emt 0:01:09]} cxd4 {[%emt 0:00:00]} 24. Ne2 {[%emt 0:00:01]} d3 {[%emt 0:00:37]} 25. Nd4 {[%emt 0:00:02]} Ne5 {[%emt 0:00:21]} 26. Kd2 {[%emt 0:00:02]} Nxc4+ {[%emt 0:01:53]} 27. Kxd3 {[%emt 0:00:08]} Ne5+ {[%emt 0:00:01]} 28. Ke3 {[%emt 0:00:07]} Bd7 {[%emt 0:00:05]} 29. Ba6 {[%emt 0:00:27]} f5 {[%emt 0:00:15]} 30. gxf5 {[%emt 0:02:17]} gxf5 {[%emt 0:00:03]} 31. Rg1+ {[%emt 0:00:04]} Kh8 {[%emt 0:00:15]} 32. Rc2 {[%emt 0:01:00]} fxe4 {[%emt 0:00:32]} 33. fxe4 {[%emt 0:00:00]} Ng4+ {[%emt 0:01:35]} 34. Rxg4 {[%emt 0:00:06]} Bxg4 {[%emt 0:00:00]} 35. Nc6 {[%emt 0:00:01]} Ra8 {[%emt 0:00:49]} 36. Bb7 {[%emt 0:00:03]} Bf5 {[%emt 0:00:26]} 37. Rc4 {[%emt 0:00:21]} Bxe4 {[%emt 0:00:13]} 38. Rxe4 {[%emt 0:00:02]} Rxe4+ {[%emt 0:00:00]} 39. Kxe4 {[%emt 0:00:01]} Re8+ {[%emt 0:00:03]} 40. Kf5 {[%emt 0:00:15]} Kg7 {[%emt 0:00:01]} 41. Ba6 {[%emt 0:00:22]} Re1 {[%emt 0:00:37]} 42. Bb5 {[%emt 0:00:19]} a5 {[%emt 0:00:01]} 43. Bd3 {[%emt 0:00:22]} Re3 {[%emt 0:00:10]} 44. Bb5 {[%emt 0:00:26]} Re1 {[%emt 0:00:08]} 45. Ba6 {[%emt 0:00:56]} Kf7 {[%emt 0:00:08]} 46. Kg5 {[%emt 0:00:27]} Rg1+ {[%emt 0:00:11]} 47. Kf5 {[%emt 0:00:13]} Re1 {[%emt 0:00:02]} 48. Bd3 {[%emt 0:00:35]} Re3 {[%emt 0:00:12]} 49. Bc4 {[%emt 0:00:14]} Rf3+ {[%emt 0:00:10]} 50. Kg5 {[%emt 0:00:15]} Rg3+ {[%emt 0:00:01]} 51. Kf5 {[%emt 0:00:16]} Rf3+ {[%emt 0:00:10]} 52. Kg5 {[%emt 0:00:06]} Rg3+ {[%emt 0:00:17]} 53. Kf5 {[%emt 0:00:02]} Rf3+ {[%emt 0:00:01]} 1/2-1/2

[Event "Julius Baer Generation Cup Prelims 2022"]
[Site "Online"]
[Date "2022.09.14"]
[Round "2.4"]
[White "Navara, David"]
[Black "Wojtaszek, Radoslaw"]
[Result "1/2-1/2"]
[ECO "C77"]
[WhiteElo "2681"]
[BlackElo "2696"]
[Annotator "ChessBase"]
[PlyCount "73"]
[EventDate "2022.09.12"]
[EventType "tourn"]
[EventCountry "NET"]
[SourceTitle "playchess.com"]
[Source "ChessBase"]
[SourceQuality "1"]
[TimeControl "900+10"]

1. e4 {[%emt 0:00:00]} e5 {[%emt 0:00:00]} 2. Nf3 {[%emt 0:00:02]} Nc6 {[%emt 0:00:01]} 3. Bb5 {[%emt 0:00:11]} a6 {[%emt 0:00:01]} 4. Ba4 {[%emt 0:00:01]} Nf6 {[%emt 0:00:01]} 5. O-O {[%emt 0:00:01]} Be7 {[%emt 0:00:02]} 6. d3 {[%emt 0:00:01]} b5 {[%emt 0:00:14]} 7. Bb3 {[%emt 0:00:01]} d6 {[%emt 0:00:01]} 8. a3 {[%emt 0:00:02]} O-O {[%emt 0:00:08]} 9. Nc3 {[%emt 0:00:01]} h6 {[%emt 0:00:05]} 10. Be3 {[%emt 0:00:54]} Re8 {[%emt 0:00:16]} 11. h3 {[%emt 0:00:37]} Bf8 {[%emt 0:00:13]} 12. a4 {[%emt 0:01:56]} b4 {[%emt 0:02:13]} 13. Nd5 {[%emt 0:00:04]} Na5 {[%emt 0:00:06]} 14. Ba2 {[%emt 0:01:10]} Nxd5 {[%emt 0:00:40]} 15. exd5 {[%emt 0:00:18]} c6 {[%emt 0:02:08]} 16. d4 {[%emt 0:01:13]} cxd5 {[%emt 0:01:33]} 17. Bxd5 {[%emt 0:02:59]} Bb7 {[%emt 0:00:04]} 18. Bxb7 {[%emt 0:00:01]} Nxb7 {[%emt 0:00:01]} 19. Nd2 {[%emt 0:00:03]} Na5 {[%emt 0:02:29]} 20. Qf3 {[%emt 0:01:10]} Rc8 {[%emt 0:01:20]} 21. Rac1 {[%emt 0:00:44]} exd4 {[%emt 0:01:00]} 22. Bxd4 {[%emt 0:00:00]} Nc6 {[%emt 0:00:03]} 23. Be3 {[%emt 0:00:49]} Ne5 {[%emt 0:00:17]} 24. Qd5 {[%emt 0:00:11]} Qd7 {[%emt 0:00:13]} 25. b3 {[%emt 0:01:47]} Qc6 {[%emt 0:00:15]} 26. Qxc6 {[%emt 0:00:08]} Rxc6 {[%emt 0:00:00]} 27. Bd4 {[%emt 0:00:07]} Rec8 {[%emt 0:00:44]} 28. Bxe5 {[%emt 0:00:05]} dxe5 {[%emt 0:00:00]} 29. Nc4 {[%emt 0:00:00]} f6 {[%emt 0:00:32]} 30. Rfd1 {[%emt 0:00:18]} Bc5 {[%emt 0:00:29]} 31. Rd7 {[%emt 0:00:31]} Bd4 {[%emt 0:00:45]} 32. Rd1 {[%emt 0:00:06]} R6c7 {[%emt 0:00:48]} 33. Rd6 {[%emt 0:00:01]} Rc6 {[%emt 0:00:05]} 34. Rd7 {[%emt 0:00:01]} R6c7 {[%emt 0:01:15]} 35. Rd5 {[%emt 0:00:53]} Rc5 {[%emt 0:00:04]} 36. Rd6 {[%emt 0:00:01]} R5c6 {[%emt 0:00:03]} 37. Rd7 {[%emt 0:00:03]} 1/2-1/2

[Event "Julius Baer Generation Cup Prelims 2022"]
[Site "Online"]
[Date "2022.09.14"]
[Round "2.5"]
[White "Niemann, Hans Moke"]
[Black "Yoo, Christopher Woojin"]
[Result "1-0"]
[ECO "B40"]
[WhiteElo "2688"]
[BlackElo "2563"]
[Annotator "ChessBase"]
[PlyCount "161"]
[EventDate "2022.09.12"]
[EventType "tourn"]
[EventCountry "NET"]
[SourceTitle "playchess.com"]
[Source "ChessBase"]
[SourceQuality "1"]
[TimeControl "900+10"]

1. e4 {[%emt 0:00:00]} c5 {[%emt 0:00:00]} 2. Nf3 {[%emt 0:00:04]} e6 {[%emt 0:00:02]} 3. g3 {[%emt 0:00:19]} Nc6 {[%emt 0:00:03]} 4. Bg2 {[%emt 0:00:03]} d5 {[%emt 0:00:11]} 5. exd5 {[%emt 0:00:44]} exd5 {[%emt 0:00:00]} 6. O-O {[%emt 0:00:02]} Nf6 {[%emt 0:00:42]} 7. d4 {[%emt 0:00:07]} Bg4 {[%emt 0:00:06]} 8. Re1+ {[%emt 0:00:11]} Be7 {[%emt 0:00:22]} 9. h3 {[%emt 0:00:37]} Bxf3 {[%emt 0:00:20]} 10. Qxf3 {[%emt 0:00:02]} cxd4 {[%emt 0:02:05]} 11. Qb3 {[%emt 0:00:39]} Qd7 {[%emt 0:00:45]} 12. Bg5 {[%emt 0:00:04]} O-O {[%emt 0:00:02]} 13. Bxf6 {[%emt 0:00:17]} Bxf6 {[%emt 0:00:00]} 14. Qxd5 {[%emt 0:00:01]} Qxd5 {[%emt 0:01:26]} 15. Bxd5 {[%emt 0:00:00]} Nb4 {[%emt 0:00:03]} 16. Bb3 {[%emt 0:00:27]} Rfc8 {[%emt 0:00:34]} 17. Na3 {[%emt 0:00:06]} a5 {[%emt 0:00:03]} 18. Ba4 {[%emt 0:00:13]} b5 {[%emt 0:00:58]} 19. Bxb5 {[%emt 0:00:45]} Nxc2 {[%emt 0:00:05]} 20. Nxc2 {[%emt 0:00:02]} Rxc2 {[%emt 0:00:00]} 21. Re2 {[%emt 0:00:16]} d3 {[%emt 0:01:19]} 22. Bxd3 {[%emt 0:00:06]} Rxe2 {[%emt 0:00:03]} 23. Bxe2 {[%emt 0:00:01]} Bxb2 {[%emt 0:00:02]} 24. Rd1 {[%emt 0:00:02]} Bf6 {[%emt 0:01:19]} 25. Rd7 {[%emt 0:00:05]} Kf8 {[%emt 0:00:02]} 26. Bc4 {[%emt 0:00:17]} Be7 {[%emt 0:00:02]} 27. a4 {[%emt 0:00:18]} Rc8 {[%emt 0:00:12]} 28. Bb3 {[%emt 0:00:07]} Rb8 {[%emt 0:00:10]} 29. Ra7 {[%emt 0:00:23]} g6 {[%emt 0:00:46]} 30. Bd5 {[%emt 0:00:13]} Rb2 {[%emt 0:02:56]} 31. Rxa5 {[%emt 0:00:04]} Bd8 {[%emt 0:00:01]} 32. Ra8 {[%emt 0:02:03]} Ke7 {[%emt 0:00:42]} 33. Ra7+ {[%emt 0:00:03]} Kd6 {[%emt 0:00:03]} 34. Rxf7 {[%emt 0:00:02]} Bb6 {[%emt 0:00:07]} 35. Bc4 {[%emt 0:00:05]} Rc2 {[%emt 0:00:55]} 36. Rf6+ {[%emt 0:00:19]} Kc7 {[%emt 0:00:01]} 37. Bg8 {[%emt 0:00:14]} h5 {[%emt 0:00:55]} 38. Bf7 {[%emt 0:00:23]} h4 {[%emt 0:00:19]} 39. Bxg6 {[%emt 0:00:34]} Rc1+ {[%emt 0:00:55]} 40. Kg2 {[%emt 0:00:10]} hxg3 {[%emt 0:00:01]} 41. fxg3 {[%emt 0:00:13]} Rg1+ {[%emt 0:00:05]} 42. Kh2 {[%emt 0:00:03]} Ra1 {[%emt 0:00:01]} 43. Be4 {[%emt 0:00:08]} Bd4 {[%emt 0:00:38]} 44. Rc6+ {[%emt 0:00:11]} Kd7 {[%emt 0:00:01]} 45. Rc2 {[%emt 0:00:05]} Be5 {[%emt 0:00:01]} 46. Bc6+ {[%emt 0:00:46]} Ke7 {[%emt 0:00:11]} 47. Rf2 {[%emt 0:00:31]} Ra3 {[%emt 0:00:08]} 48. Rf3 {[%emt 0:00:04]} Ra2+ {[%emt 0:00:03]} 49. Kg1 {[%emt 0:00:04]} Ra1+ {[%emt 0:01:00]} 50. Kf2 {[%emt 0:00:06]} Kd6 {[%emt 0:00:03]} 51. Be8 {[%emt 0:00:15]} Bd4+ {[%emt 0:00:49]} 52. Ke2 {[%emt 0:00:05]} Ra2+ {[%emt 0:00:02]} 53. Kd3 {[%emt 0:00:08]} Ke5 {[%emt 0:00:00]} 54. Kc4 {[%emt 0:00:09]} Rc2+ {[%emt 0:00:03]} 55. Kb4 {[%emt 0:00:27]} Rh2 {[%emt 0:01:48]} 56. g4 {[%emt 0:00:07]} Bf2 {[%emt 0:00:17]} 57. Kb5 {[%emt 0:00:13]} Bd4 {[%emt 0:00:07]} 58. a5 {[%emt 0:00:08]} Rb2+ {[%emt 0:00:02]} 59. Ka6 {[%emt 0:00:02]} Rc2 {[%emt 0:00:12]} 60. Rf5+ {[%emt 0:00:04]} Kd6 {[%emt 0:00:01]} 61. Bf7 {[%emt 0:00:14]} Be5 {[%emt 0:00:19]} 62. g5 {[%emt 0:00:03]} Rc6+ {[%emt 0:00:01]} 63. Kb5 {[%emt 0:00:02]} Rc5+ {[%emt 0:00:03]} 64. Ka4 {[%emt 0:00:01]} Rc1 {[%emt 0:00:01]} 65. g6 {[%emt 0:00:07]} Ra1+ {[%emt 0:00:02]} 66. Kb5 {[%emt 0:00:02]} Bc3 {[%emt 0:00:04]} 67. Kc4 {[%emt 0:00:14]} Bg7 {[%emt 0:00:14]} 68. Kb5 {[%emt 0:00:24]} Rb1+ {[%emt 0:00:03]} 69. Ka6 {[%emt 0:00:02]} Rb8 {[%emt 0:00:03]} 70. h4 {[%emt 0:00:08]} Bd4 {[%emt 0:00:11]} 71. Bd5 {[%emt 0:00:16]} Be5 {[%emt 0:00:37]} 72. Bb7 {[%emt 0:00:03]} Ke6 {[%emt 0:00:22]} 73. Rg5 {[%emt 0:00:35]} Bf6 {[%emt 0:00:40]} 74. Bd5+ {[%emt 0:00:20]} Kd6 {[%emt 0:00:12]} 75. Rf5 {[%emt 0:00:02]} Be5 {[%emt 0:00:13]} 76. Bf3 {[%emt 0:00:45]} Ke6 {[%emt 0:00:10]} 77. Rf7 {[%emt 0:00:08]} Bf6 {[%emt 0:00:26]} 78. h5 {[%emt 0:00:05]} Rd8 {[%emt 0:00:06]} 79. h6 {[%emt 0:00:06]} Rd6+ {[%emt 0:00:10]} 80. Kb5 {[%emt 0:00:02]} Rd3 {[%emt 0:00:14]} 81. Bg4+ {[%emt 0:00:02]} 1-0

[Event "Julius Baer Generation Cup Prelims 2022"]
[Site "Online"]
[Date "2022.09.14"]
[Round "2.6"]
[White "Aronian, Levon"]
[Black "Gelfand, Boris"]
[Result "1-0"]
[ECO "A05"]
[WhiteElo "2759"]
[BlackElo "2668"]
[Annotator "ChessBase"]
[PlyCount "101"]
[EventDate "2022.09.12"]
[EventType "tourn"]
[EventCountry "NET"]
[SourceTitle "playchess.com"]
[Source "ChessBase"]
[SourceQuality "1"]
[TimeControl "900+10"]

1. Nf3 {[%emt 0:00:00]} c5 {[%emt 0:00:00]} 2. b3 {[%emt 0:00:05]} Nf6 {[%emt 0:00:08]} 3. Bb2 {[%emt 0:00:02]} g6 {[%emt 0:00:06]} 4. Bxf6 {[%emt 0:00:42]} exf6 {[%emt 0:00:01]} 5. c4 {[%emt 0:00:00]} d5 {[%emt 0:00:06]} 6. cxd5 {[%emt 0:00:02]} Qxd5 {[%emt 0:00:01]} 7. Nc3 {[%emt 0:00:01]} Qd8 {[%emt 0:01:07]} 8. g3 {[%emt 0:00:03]} Nc6 {[%emt 0:01:13]} 9. Bg2 {[%emt 0:00:03]} Be7 {[%emt 0:00:29]} 10. O-O {[%emt 0:00:03]} O-O {[%emt 0:00:04]} 11. Rc1 {[%emt 0:03:13]} Rb8 {[%emt 0:01:51]} 12. Ne1 {[%emt 0:01:54]} Bf5 {[%emt 0:02:12]} 13. Bxc6 {[%emt 0:00:29]} bxc6 {[%emt 0:00:03]} 14. Na4 {[%emt 0:00:02]} Qa5 {[%emt 0:01:47]} 15. d3 {[%emt 0:00:22]} Rfd8 {[%emt 0:00:43]} 16. Ng2 {[%emt 0:00:04]} Be6 {[%emt 0:00:50]} 17. Nf4 {[%emt 0:00:33]} Bg4 {[%emt 0:00:17]} 18. Qe1 {[%emt 0:00:35]} Qa6 {[%emt 0:01:01]} 19. Rc2 {[%emt 0:00:11]} Bd6 {[%emt 0:01:01]} 20. Qc3 {[%emt 0:01:02]} Bxf4 {[%emt 0:00:40]} 21. gxf4 {[%emt 0:00:21]} Qc8 {[%emt 0:00:02]} 22. f3 {[%emt 0:00:23]} Bh3 {[%emt 0:00:03]} 23. Rfc1 {[%emt 0:00:04]} Qf5 {[%emt 0:02:24]} 24. Qd2 {[%emt 0:00:01]} Rd4 {[%emt 0:00:31]} 25. Rxc5 {[%emt 0:00:06]} Qxf4 {[%emt 0:00:01]} 26. Qxf4 {[%emt 0:00:26]} Rxf4 {[%emt 0:00:01]} 27. Rxc6 {[%emt 0:00:03]} Bd7 {[%emt 0:00:02]} 28. R6c4 {[%emt 0:00:08]} Rf5 {[%emt 0:00:18]} 29. h4 {[%emt 0:00:29]} Ra5 {[%emt 0:01:14]} 30. Nc5 {[%emt 0:00:14]} Be6 {[%emt 0:00:30]} 31. Nxe6 {[%emt 0:00:42]} fxe6 {[%emt 0:00:01]} 32. R1c2 {[%emt 0:00:01]} Rb7 {[%emt 0:00:14]} 33. Kf2 {[%emt 0:00:41]} Kg7 {[%emt 0:00:05]} 34. d4 {[%emt 0:00:26]} Kh6 {[%emt 0:00:03]} 35. Rc6 {[%emt 0:00:33]} Re7 {[%emt 0:00:24]} 36. a4 {[%emt 0:01:24]} Rd5 {[%emt 0:00:09]} 37. e3 {[%emt 0:00:39]} Kh5 {[%emt 0:00:09]} 38. Kg3 {[%emt 0:00:15]} g5 {[%emt 0:00:01]} 39. hxg5 {[%emt 0:00:15]} Rxg5+ {[%emt 0:00:01]} 40. Kf2 {[%emt 0:00:00]} Kg6 {[%emt 0:00:22]} 41. Rc7 {[%emt 0:00:30]} Rxc7 {[%emt 0:00:40]} 42. Rxc7 {[%emt 0:00:00]} Ra5 {[%emt 0:00:04]} 43. Rc5 {[%emt 0:00:18]} Ra6 {[%emt 0:00:02]} 44. a5 {[%emt 0:00:01]} Rd6 {[%emt 0:00:12]} 45. b4 {[%emt 0:00:16]} a6 {[%emt 0:00:01]} 46. Kg3 {[%emt 0:00:07]} h5 {[%emt 0:00:30]} 47. Kh4 {[%emt 0:00:02]} Rd7 {[%emt 0:00:03]} 48. Rc6 {[%emt 0:00:05]} Rb7 {[%emt 0:00:01]} 49. Rb6 {[%emt 0:00:10]} Rc7 {[%emt 0:00:04]} 50. Rxa6 {[%emt 0:00:02]} Rc1 {[%emt 0:00:25]} 51. Rxe6 {[%emt 0:00:02]} 1-0

[Event "Julius Baer Generation Cup Prelims 2022"]
[Site "Online"]
[Date "2022.09.14"]
[Round "2.7"]
[White "Praggnanandhaa R"]
[Black "Duda, Jan-Krzysztof"]
[Result "1-0"]
[ECO "D00"]
[WhiteElo "2676"]
[BlackElo "2731"]
[Annotator "ChessBase"]
[PlyCount "155"]
[EventDate "2022.09.12"]
[EventType "tourn"]
[EventCountry "NET"]
[SourceTitle "playchess.com"]
[Source "ChessBase"]
[SourceQuality "1"]
[TimeControl "900+10"]

1. d4 {[%emt 0:00:00]} d5 {[%emt 0:00:00]} 2. Nc3 {[%emt 0:00:11]} Nf6 {[%emt 0:00:09]} 3. Bf4 {[%emt 0:00:01]} e6 {[%emt 0:00:20]} 4. Nb5 {[%emt 0:00:04]} Bd6 {[%emt 0:00:04]} 5. Nxd6+ {[%emt 0:00:25]} cxd6 {[%emt 0:00:00]} 6. c3 {[%emt 0:00:32]} Nc6 {[%emt 0:00:04]} 7. Nf3 {[%emt 0:00:06]} Ne4 {[%emt 0:00:27]} 8. g3 {[%emt 0:01:54]} a5 {[%emt 0:00:07]} 9. Bg2 {[%emt 0:00:12]} a4 {[%emt 0:00:15]} 10. Nd2 {[%emt 0:01:05]} Nxd2 {[%emt 0:00:59]} 11. Bxd2 {[%emt 0:00:24]} b5 {[%emt 0:02:06]} 12. e4 {[%emt 0:02:08]} Bb7 {[%emt 0:00:12]} 13. Qg4 {[%emt 0:01:57]} Qf6 {[%emt 0:01:51]} 14. Qe2 {[%emt 0:01:34]} O-O {[%emt 0:00:42]} 15. Qxb5 {[%emt 0:00:10]} Rfb8 {[%emt 0:00:41]} 16. exd5 {[%emt 0:00:27]} Nxd4 {[%emt 0:02:23]} 17. Qd3 {[%emt 0:00:36]} Qe5+ {[%emt 0:00:25]} 18. Kd1 {[%emt 0:01:06]} Bxd5 {[%emt 0:00:06]} 19. cxd4 {[%emt 0:00:21]} Qh5+ {[%emt 0:00:01]} 20. f3 {[%emt 0:00:11]} Rxb2 {[%emt 0:00:01]} 21. Ke2 {[%emt 0:00:30]} f5 {[%emt 0:01:23]} 22. Kf2 {[%emt 0:00:29]} f4 {[%emt 0:00:47]} 23. Rhb1 {[%emt 0:00:31]} a3 {[%emt 0:02:27]} 24. Rxb2 {[%emt 0:00:06]} axb2 {[%emt 0:00:00]} 25. Rb1 {[%emt 0:00:02]} Qxh2 {[%emt 0:02:07]} 26. Bxf4 {[%emt 0:00:07]} Rf8 {[%emt 0:00:02]} 27. Rxb2 {[%emt 0:00:59]} g5 {[%emt 0:00:10]} 28. Bxd6 {[%emt 0:00:03]} g4 {[%emt 0:00:31]} 29. Bxf8 {[%emt 0:01:08]} gxf3 {[%emt 0:00:01]} 30. Rb8 {[%emt 0:00:02]} Kf7 {[%emt 0:00:19]} 31. Qxf3+ {[%emt 0:01:21]} Bxf3 {[%emt 0:00:00]} 32. Kxf3 {[%emt 0:00:00]} Qh5+ {[%emt 0:00:09]} 33. Kf2 {[%emt 0:00:03]} Qf5+ {[%emt 0:00:37]} 34. Kg1 {[%emt 0:00:04]} Qd3 {[%emt 0:00:06]} 35. Bc5 {[%emt 0:00:20]} Qe3+ {[%emt 0:00:25]} 36. Kf1 {[%emt 0:00:27]} Qd3+ {[%emt 0:00:06]} 37. Kf2 {[%emt 0:00:04]} Qd2+ {[%emt 0:00:02]} 38. Kf3 {[%emt 0:00:21]} Qd3+ {[%emt 0:00:25]} 39. Kg4 {[%emt 0:00:45]} Qf5+ {[%emt 0:00:26]} 40. Kh4 {[%emt 0:00:01]} Qf6+ {[%emt 0:00:10]} 41. Kh3 {[%emt 0:00:04]} Qh6+ {[%emt 0:00:38]} 42. Kg4 {[%emt 0:00:02]} Qg6+ {[%emt 0:00:04]} 43. Kf4 {[%emt 0:00:20]} Qh6+ {[%emt 0:00:20]} 44. Kf3 {[%emt 0:00:10]} Qh5+ {[%emt 0:00:09]} 45. Kf2 {[%emt 0:00:31]} Qf5+ {[%emt 0:00:13]} 46. Kg1 {[%emt 0:00:01]} Qd3 {[%emt 0:00:06]} 47. Rf8+ {[%emt 0:00:22]} Kg7 {[%emt 0:00:06]} 48. Rf3 {[%emt 0:00:04]} Qb1+ {[%emt 0:00:05]} 49. Bf1 {[%emt 0:00:06]} Qxa2 {[%emt 0:00:11]} 50. Bd6 {[%emt 0:00:01]} h5 {[%emt 0:00:19]} 51. Be5+ {[%emt 0:00:03]} Kg6 {[%emt 0:00:00]} 52. Rf2 {[%emt 0:00:18]} Qb1 {[%emt 0:00:14]} 53. Rf6+ {[%emt 0:00:26]} Kg5 {[%emt 0:00:00]} 54. Rxe6 {[%emt 0:00:08]} h4 {[%emt 0:00:04]} 55. gxh4+ {[%emt 0:00:21]} Kxh4 {[%emt 0:00:00]} 56. Rf6 {[%emt 0:00:02]} Qd1 {[%emt 0:00:09]} 57. Rf4+ {[%emt 0:00:10]} Kg5 {[%emt 0:00:04]} 58. Kh2 {[%emt 0:00:08]} Qd2+ {[%emt 0:00:25]} 59. Bg2 {[%emt 0:00:03]} Qe3 {[%emt 0:00:08]} 60. Re4 {[%emt 0:00:14]} Qd3 {[%emt 0:00:22]} 61. Bg3 {[%emt 0:00:04]} Kg6 {[%emt 0:00:24]} 62. Rf4 {[%emt 0:00:12]} Qe2 {[%emt 0:00:09]} 63. d5 {[%emt 0:00:06]} Qh5+ {[%emt 0:00:01]} 64. Rh4 {[%emt 0:00:01]} Qd1 {[%emt 0:00:05]} 65. d6 {[%emt 0:00:07]} Kg7 {[%emt 0:00:05]} 66. Rf4 {[%emt 0:00:41]} Qh5+ {[%emt 0:00:06]} 67. Bh3 {[%emt 0:00:02]} Qe2+ {[%emt 0:00:20]} 68. Rf2 {[%emt 0:00:01]} Qd3 {[%emt 0:00:01]} 69. d7 {[%emt 0:00:02]} Qd4 {[%emt 0:00:01]} 70. Rg2 {[%emt 0:00:09]} Kf7 {[%emt 0:00:11]} 71. Bc7 {[%emt 0:00:17]} Qc5 {[%emt 0:00:39]} 72. Bg3 {[%emt 0:00:28]} Qd4 {[%emt 0:00:06]} 73. Re2 {[%emt 0:00:03]} Qd3 {[%emt 0:00:18]} 74. Bg4 {[%emt 0:00:03]} Kg7 {[%emt 0:00:09]} 75. Bc7 {[%emt 0:00:24]} Qh7+ {[%emt 0:00:11]} 76. Kg2 {[%emt 0:00:03]} Qh4 {[%emt 0:00:06]} 77. Re4 {[%emt 0:00:19]} Kf7 {[%emt 0:00:16]} 78. Be6+ {[%emt 0:00:09]} 1-0